[Event "7th Salamanca Festival 2024"]
[Site "Salamanca"]
[Date "2024.05.25"]
[Round "7.4"]
[White "Adams, Michael"]
[Black "Alekseenko, Kirill"]
[Result "1-0"]
[ECO "C71"]
[WhiteElo "2677"]
[BlackElo "2679"]
[Annotator "TA"]
[PlyCount "113"]
[EventDate "2024.05.18"]
[EventType "tourn"]
[EventCountry "ESP"]
[SourceTitle "playchess.com"]
[Source "ChessBase"]
[SourceQuality "1"]
[TimeControl "2400+5"]

{[%evp 14,113,8,6,8,8,6,0,0,10,13,0,1,-2,0,0,0,-4,-1,-7,0,0,0,0,0,0,1,0,33,27,42,0,0,0,0,-40,-29,-67,0,0,0,0,0,0,0,0,0,0,0,0,0,0,44,36,40,38,45,27,79,23,35,43,177,0,0,0,0,0,0,0,0,0,7,7,685,602,469,273,277,279,29980,29981,29982,29983,29983,29984,29985,29986,29986,29987,29993,29987,29987,29987,29987,29988,29988,29989,29992,29989,29989,29990]} 1. e4 {[%emt 0:00:03]} e5 {[%emt 0:00:09]} 2. Nf3 {[%emt 0:00:02]} Nc6 {[%emt 0:00:02]} 3. Bb5 {[%emt 0:00:02]} a6 {[%emt 0:00:06]} 4. Ba4 {[%emt 0:00:02]} d6 {[%emt 0:00:03]} 5. c4 {[%emt 0:01:10]} Nf6 {[%emt 0:01:38]} 6. Nc3 {[%emt 0:00:04]} Bg4 {[%emt 0:00:08]} 7. h3 {[%emt 0:00:32]} Bxf3 {[%emt 0:00:09]} 8. Qxf3 {[%emt 0:00:03]} Nd7 {[%emt 0:00:01]} 9. Bxc6 {[%emt 0:00:38]} bxc6 {[%emt 0:00:03]} 10. d3 {[%emt 0:00:08]} Nc5 {[%emt 0:02:04] The position is equal.} 11. O-O {[%emt 0:03:56]} Be7 {[%emt 0:00:03]} 12. Ne2 {[%emt 0:03:15]} O-O {[%emt 0:00:05]} 13. d4 {[%emt 0:00:54]} exd4 {[%emt 0:03:58]} 14. Nxd4 {[%emt 0:00:02]} Qe8 {[%emt 0:00:02]} 15. Be3 {[%emt 0:05:57][%cal Oe4e5]} Bf6 {[%emt 0:03:17]} 16. Rad1 {[%emt 0:01:11] Against Nd3} Nxe4 {[%emt 0:01:26]} 17. Rfe1 {[%emt 0:00:10]} Bxd4 {[%emt 0:00:48]} 18. Bxd4 {[%emt 0:00:10]} f5 {[%emt 0:00:05]} 19. c5 {[%emt 0:01:47]} Qf7 {[%emt 0:00:51]} 20. Qa3 {[%emt 0:00:46]} d5 {[%emt 0:04:56]} 21. f3 {[%emt 0:00:13][%mdl 1024] White has compensation.} Ng5 {[%emt 0:00:21]} 22. Qe3 {[%emt 0:02:37]} h6 {[%emt 0:01:11]} 23. h4 {[%emt 0:01:11]} Rae8 {[%emt 0:03:51]} 24. Be5 {[%emt 0:00:19]} Ne6 {[%emt 0:01:06]} 25. b4 {[%emt 0:01:44]} Re7 {[%emt 0:00:34]} (25... Qh5 $15 26. Qf2 Rf7) 26. Re2 {[%emt 0:02:00]} Rb8 {[%emt 0:02:26]} 27. a3 {[%emt 0:00:38]} Nf8 {[%emt 0:01:49]} 28. Qd3 {[%emt 0:01:04]} Ng6 {[%emt 0:02:15]} 29. Bg3 {[%emt 0:00:02]} f4 {[%emt 0:00:02]} 30. Rxe7 {[%emt 0:01:12]} Nxe7 {[%emt 0:00:04]} 31. Bf2 {[%emt 0:00:04]} Ra8 {[%emt 0:00:12]} 32. Re1 {[%emt 0:00:37]} a5 {[%emt 0:00:58]} 33. b5 {[%emt 0:01:01]} Nf5 $1 {[%emt 0:03:07]} 34. b6 {[%emt 0:00:47]} cxb6 {[%emt 0:00:19]} 35. cxb6 {[%emt 0:00:02]} Qf6 {[%emt 0:02:59][%cal Oa8b8] Inhibits Qc3.} 36. h5 {[%emt 0:02:29]} ({White should try} 36. Rb1 $16 {b7 is the strong threat.} Ne3 37. Bxe3 fxe3 38. b7 (38. Qxe3 Qg6 $16)) 36... Rb8 {[%emt 0:00:38][%cal Of5e3]} 37. Bc5 {[%emt 0:00:34]} Ne3 {[%emt 0:00:33] [#]} 38. Bxe3 $2 {[%emt 0:03:26]} (38. Rb1 $1 $18) 38... fxe3 $11 {[%emt 0:00:01]} 39. Qxe3 $18 {[%emt 0:00:02][%mdl 4096] Endgame. KQR-KQR} d4 {[%emt 0:00:01][%cal Bd5d4,Bd4d3][%mdl 32]} 40. Qb3+ {[%emt 0:00:49]} Qf7 $1 {[%emt 0:00:03]} 41. Qb2 {[%emt 0:00:14]} Qd5 {[%emt 0:00:27]} 42. Re7 {[%emt 0:00:20] And now b7 would win.} c5 {[%emt 0:00:19]} 43. b7 $36 {[%emt 0:00:06][%mdl 2048] White is pushing.} c4 $2 {[%emt 0:00:08][%mdl 8192]} (43... Qc6 $11) 44. Qb6 {[%emt 0:00:05] Qg6 would kill now.} d3 {[%emt 0:00:08][%cal Od3d2] [#] Hoping for ...d2!} 45. Rxg7+ $3 {[%emt 0:00:41][%mdl 512]} Kxg7 {[%emt 0:00:09]} 46. Qc7+ {[%emt 0:00:01]} Kf6 $2 {[%emt 0:00:13]} (46... Qf7 $18 47. Qxb8 Kh7) 47. Qxb8 {[%emt 0:00:02] KQ-KQ. White mates.} Qd4+ {[%emt 0:00:03]} 48. Kf1 {[%emt 0:00:02]} Qa1+ {[%emt 0:00:05]} 49. Kf2 {[%emt 0:00:01]} Qa2+ {[%emt 0:00:07]} 50. Kg3 {[%emt 0:00:05] Active counter play!} Qb1 {[%emt 0:00:06]} 51. Qd6+ {[%emt 0:00:05]} Kf5 {[%emt 0:00:02]} 52. Qf4+ {[%emt 0:00:10]} ({Weaker is} 52. b8=B Qe1+ 53. Kh3 Qh1+ 54. Kg3 Qe1+ 55. Kh3 Qh1+ 56. Kg3 Qe1+ $11) 52... Ke6 {[%emt 0:00:01]} 53. Qxc4+ {[%emt 0:00:27]} Kd7 {[%emt 0:00:08]} 54. Qc8+ {[%emt 0:00:02]} Ke7 {[%emt 0:00:03]} 55. b8=Q {[%emt 0:00:10]} Qe1+ {[%emt 0:00:04]} 56. Kh3 {[%emt 0:00:14]} Qh1+ {[%emt 0:00:02]} 57. Qh2 {[%emt 0:00:03] Weighted Error Value: White=0.16 (very precise) /Black=0.24 (precise) .  Loses game:     	---       	Black=1      Missed win:     	White=1     	---        Mistake:       	White=1     	Black=3      Inaccurate:     	White=3     	Black=2      OK:         	White=18    	Black=14     Best:        	White=2     	Black=1      Strong:       	---       	Black=2} 1-0